Cogmind - Beta 9.3 @@@ ROGUE MODE // 2019.12.21 @ 14:56:32 // Winter2019/RPGLIKE Player: badjay Result: Destroyed by H-66 Slayer with Gauss Rifle Performance ------------- Evolutions (4) 2000 Regions Visited (5) 1000 Robots Destroyed (0) 0 Value Destroyed (0) 0 Prototype IDs (7) 140 Alien Tech Used (0) 0 Bonus (1325) 1325 TOTAL SCORE: 4465 Bonus ------- Pacifist 1325 Cogmind --------- Core Integrity 0/600 Matter 270/300 Energy 15/100 System Corruption 1% Temperature Cool (5) Movement Flying (35) Location -6/Factory Parts ------- > --- POWER (2) -------- (None) > --- PROPULSION (2) --- Cooled Cesium-ion Thruster Cooled Cesium-ion Thruster > --- UTILITY (5) ------ Advanced Sensor Array Advanced Signal Interpreter Advanced Terrain Scan Processor Advanced Terrain Scan Processor Improved Transmission Jammer > --- WEAPON (1) ------- Improved Datajack > --- INVENTORY (1) ---- (None) Peak State ------------ > --- POWER ------------ (None) > --- PROPULSION ------- Cooled Cesium-ion Thruster Cooled Cesium-ion Thruster > --- UTILITY ---------- Advanced Sensor Array Advanced Signal Interpreter Advanced Terrain Scan Processor Advanced Terrain Scan Processor Improved Transmission Jammer > --- WEAPON ----------- Improved Datajack > --- INVENTORY -------- (None) [Rating: 34] Favorites ----------- Power Deuterium Engine Engine Deuterium Engine Propulsion Xenon Bombardment Thruster Flight Unit Xenon Bombardment Thruster Utility Advanced Sensor Array Device Advanced Sensor Array Processor Improved Signal Interpreter Weapon Improved Datajack Launcher Rocket Launcher Special Melee Weapon Improved Datajack Build | -11 -10 -9 -8 -7 -6 ------- Run | Scr Mat Mat Mat Fac Fac Slots Evolved 6 | . . . 3 2 1 Power 1 | . . . 1 . . Propulsion 1 | . . . 1 . . Utility 4 | . . . 1 2 1 Weapon . | . . . . . . Parts Attached 14 | . 2 1 4 4 3 Power 1 | . . . 1 . . Engine 1 | . . . 1 . . Core . | . . . . . . Reactor . | . . . . . . Propulsion 4 | . . . 2 . 2 Treads . | . . . . . . Leg . | . . . . . . Wheel . | . . . . . . Hover . | . . . . . . Flight 4 | . . . 2 . 2 Utility 7 | . 1 . 1 4 1 Device 2 | . . . 1 . 1 Storage . | . . . . . . Processor 5 | . 1 . . 4 . Hackware . | . . . . . . Protection . | . . . . . . Artifact . | . . . . . . Weapon 2 | . 1 1 . . . Energy Gun . | . . . . . . Energy Cannon . | . . . . . . Ballistic Gun . | . . . . . . Ballistic Cannon . | . . . . . . Launcher 1 | . 1 . . . . Special Weapon . | . . . . . . Impact Weapon . | . . . . . . Slashing Weapon . | . . . . . . Piercing Weapon . | . . . . . . Special Melee Weapon 1 | . . 1 . . . Unidentified Prototypes 1 | . . . . . 1 Parts Lost 1 | . . . . 1 . Power . | . . . . . . Propulsion 1 | . . . . 1 . Utility . | . . . . . . Weapon . | . . . . . . Highest Loss Streak 1 | . . . . 1 . Average Slot Usage (%) 70 | . 12 30 72 81 70 Engine 5 | . . . 5 8 . Flight 16 | . . . 18 19 15 Device 10 | . . . 12 11 12 Processor 24 | . 12 25 18 30 32 Special Melee Weapon 13 | . . 5 18 11 10 Naked Turns 24 | . 24 . . . . Heaviest Build 11 | . . 1 11 11 3 Greatest Support 14 | 3 3 3 14 14 8 Greatest Overweight (x) . | . . . . . . Average Overweight (x) . | . . . . . . Largest Inventory Capacity 1 | . . . . . 1 Average Capacity . | . . . . . . Most Carried . | . . . . . . Average Carried . | . . . . . . Final Capacity 1 | . . . . . 1 Final Carried . | . . . . . . Class Distribution -------------------- 92% | Hacker-Mutant 7% | Mutant Dominant Class ---------------- Mutant | -10/Materials Hacker-Mutant | -9/Materials Hacker-Mutant | -8/Materials Hacker-Mutant | -7/Factory Hacker-Mutant | -6/Factory Resources | -11 -10 -9 -8 -7 -6 ----------- Run | Scr Mat Mat Mat Fac Fac Matter Collected 305 | 111 . . . 194 . Remotely . | . . . . . . Salvage Created . | . . . . . . Parts . | . . . . . . Haulers Intercepted . | . . . . . . Recyclers Shooed . | . . . . . . Parts Field Recycled . | . . . . . . Retrieved Matter . | . . . . . . Parts Self-Destructed . | . . . . . . Prevented . | . . . . . . Kills | -11 -10 -9 -8 -7 -6 ------- Run | Scr Mat Mat Mat Fac Fac Combat Hostiles Destroyed . | . . . . . . Classes Destroyed . | . . . . . . Best Kill Streak . | . . . . . . Combat Bots Only . | . . . . . . Max Kills in Single Turn . | . . . . . . Gunslinging . | . . . . . . Exploded . | . . . . . . Melee . | . . . . . . Uniques/NPCs Destroyed . | . . . . . . Combat | -11 -10 -9 -8 -7 -6 -------- Run | Scr Mat Mat Mat Fac Fac Damage Taken 720 | . 19 . 139 521 41 Core 602 | . 19 . 114 432 37 Absorbed by Shields . | . . . . . . Redirected to Core 449 | . . . 86 347 16 Core Remaining (%) 74 | 100 96 96 77 5 . Volleys Fired . | . . . . . . Largest . | . . . . . . Hottest . | . . . . . . Shots Fired . | . . . . . . Gun . | . . . . . . Cannon . | . . . . . . Launcher . | . . . . . . Special . | . . . . . . Kinetic . | . . . . . . Thermal . | . . . . . . Explosive . | . . . . . . Electromagnetic . | . . . . . . Robot Hit Streak . | . . . . . . Robot Miss Streak . | . . . . . . Penetration Max . | . . . . . . Secondary Targets . | . . . . . . Shots Hit Robots 14 | . . . 1 13 . Core Hits . | . . . . . . Critical Hits . | . . . . . . Critical Kills . | . . . . . . Critical Parts Destroyed . | . . . . . . Melee Attacks 16 | . . . 3 13 . Impact . | . . . . . . Slashing . | . . . . . . Piercing . | . . . . . . Sneak Attacks 13 | . . . . 13 . Combat Hostiles 10 | . . . . 10 . Follow-up Attacks . | . . . . . . Damage Inflicted . | . . . . . . Guns . | . . . . . . Cannons . | . . . . . . Explosions . | . . . . . . Melee . | . . . . . . Ramming . | . . . . . . Kinetic . | . . . . . . Thermal . | . . . . . . Explosive . | . . . . . . Electromagnetic . | . . . . . . Impact . | . . . . . . Slashing . | . . . . . . Piercing . | . . . . . . Highest Corruption 1 | . . . . 1 1 Average Corruption 1 | . . . . 1 1 Corruption Purged . | . . . . . . Overload Shots . | . . . . . . Overflow Damage . | . . . . . . Projectiles . | . . . . . . Explosions . | . . . . . . Melee . | . . . . . . Knockbacks . | . . . . . . Impact . | . . . . . . Kinetic . | . . . . . . Secondary . | . . . . . . Self-Inflicted Damage . | . . . . . . Shots . | . . . . . . Rammed . | . . . . . . Targets Rammed . | . . . . . . Kicked . | . . . . . . Crushed . | . . . . . . Highest Temperature 55 | . . . . 55 . Average Temperature 12 | . . . . 12 . Received Heat Transfer 72 | . . . 72 . . Siege Activations . | . . . . . . Robots Corrupted . | . . . . . . Combat Hostiles . | . . . . . . Parts Fried . | . . . . . . Impact Corruptions . | . . . . . . Robots Melted . | . . . . . . Combat Hostiles . | . . . . . . Parts Melted . | . . . . . . Heat Transferred . | . . . . . . Parts Sabotaged . | . . . . . . Parts Stolen . | . . . . . . Parts Stripped . | . . . . . . Power Chain Reactions . | . . . . . . Missiles Intercepted . | . . . . . . Alert | -11 -10 -9 -8 -7 -6 ------- Run | Scr Mat Mat Mat Fac Fac Peak Influence 117 | . 15 26 117 101 68 Average Influence 58 | . 10 13 59 73 41 Maximum Alert Level . | . . . . . . Low Security (%) 100 | 100 100 100 100 100 100 Level 1 . | . . . . . . Level 2 . | . . . . . . Level 3 . | . . . . . . Level 4 . | . . . . . . Level 5 . | . . . . . . High Security . | . . . . . . Max Security . | . . . . . . Squads Dispatched 2 | . . . 1 . 1 Investigation 1 | . . . . . 1 Extermination . | . . . . . . Reinforcement 1 | . . . 1 . . Assault . | . . . . . . Garrison . | . . . . . . Intercept . | . . . . . . Construction Impeded . | . . . . . . Haulers Reinforced . | . . . . . . Stealth | -11 -10 -9 -8 -7 -6 --------- Run | Scr Mat Mat Mat Fac Fac Distress Signals 3 | . . 1 2 . . Communications Jammed . | . . . . . . Distress Signals . | . . . . . . Times Spotted 22 | . 1 1 12 5 3 Peak Tracking Total 8 | . 3 3 8 1 2 Tactical Retreats 3 | . . . 2 1 . Traps | -11 -10 -9 -8 -7 -6 ------- Run | Scr Mat Mat Mat Fac Fac Traps Triggered . | . . . . . . Indirectly . | . . . . . . Trap Hack Attempts 10 | . . . . 10 . Triggered 1 | . . . . 1 . Disarmed . | . . . . . . Reprogrammed 1 | . . . . 1 . Reused . | . . . . . . Traps Extracted . | . . . . . . Installed . | . . . . . . Triggered . | . . . . . . Machines | -11 -10 -9 -8 -7 -6 ---------- Run | Scr Mat Mat Mat Fac Fac Machines Disabled . | . . . . . . Max in Single Turn . | . . . . . . Machines Sabotaged . | . . . . . . Garrisons Compromised . | . . . . . . Overloaded Fab Kills . | . . . . . . Fab Network Shutdowns . | . . . . . . Hacking | -11 -10 -9 -8 -7 -6 --------- Run | Scr Mat Mat Mat Fac Fac Machines Accessed 10 | . . 2 2 3 3 Terminals 10 | . . 2 2 3 3 Fabricators . | . . . . . . Repair Stations . | . . . . . . Recycling Units . | . . . . . . Scanalyzers . | . . . . . . Garrison Access . | . . . . . . Total Hacks 79 | . . 13 25 20 21 Successful 46 | . . 10 12 13 11 Failed 33 | . . 3 13 7 10 Catastrophic 1 | . . . 1 . . Database Lockouts . | . . . . . . Manual 46 | . . 9 13 11 13 Terminals 79 | . . 13 25 20 21 Fabricators . | . . . . . . Repair Stations . | . . . . . . Recycling Units . | . . . . . . Scanalyzers . | . . . . . . Garrison Access . | . . . . . . Terminal Hacks 24 | . . 6 8 6 4 Record 1 | . . . . . 1 Prototype ID Bank 3 | . . . 1 1 1 Level Access Points 2 | . . 1 . 1 . Branch Access Points 3 | . . 1 2 . . Terminal Index 4 | . . 1 1 1 1 Alert Level 1 | . . . . 1 . Registered Components 2 | . . 1 1 . . Registered Prototypes 2 | . . 1 1 . . Zone Layout 6 | . . 1 2 2 1 Fabricator Hacks . | . . . . . . Repair Station Hacks . | . . . . . . Recycling Unit Hacks . | . . . . . . Scanalyzer . | . . . . . . Garrison Access Hacks . | . . . . . . Unauthorized Hacks 53 | . . 9 10 16 18 Terminals 22 | . . 4 4 7 7 Track 7 | . . 1 1 2 3 Assimilate 1 | . . . . 1 . Botnet 10 | . . 2 2 3 3 Operators 4 | . . 1 1 1 1 Fabricators . | . . . . . . Repair Stations . | . . . . . . Recycling Units . | . . . . . . Scanalyzers . | . . . . . . Garrison Access . | . . . . . . Data Cores Recovered . | . . . . . . Used . | . . . . . . Hacking Detections 10 | . . 2 2 3 3 Full Trace Events 1 | . . . . . 1 Feedback Events 1 | . . . . . 1 Corruption 1 | . . . . . 1 Feedback Blocked . | . . . . . . Robot Schematics Acquired . | . . . . . . Robots Built . | . . . . . . Matter . | . . . . . . Time . | . . . . . . Total Robot Build Rating . | . . . . . . Part Schematics Acquired . | . . . . . . Parts Built . | . . . . . . Matter . | . . . . . . Time . | . . . . . . Total Part Build Rating . | . . . . . . Parts Repaired . | . . . . . . Time . | . . . . . . Parts Recycled . | . . . . . . Recycled Matter . | . . . . . . Retrieved Matter . | . . . . . . Retrieved Components . | . . . . . . Parts Scanalyzed . | . . . . . . Part Schematics Acquired . | . . . . . . Parts Damaged . | . . . . . . Bothacking | -11 -10 -9 -8 -7 -6 ------------ Run | Scr Mat Mat Mat Fac Fac Used RIF Installer . | . . . . . . Robots Hacked 3 | . . . 1 2 . Non-combat 3 | . . . 1 2 . Combat . | . . . . . . Robot Hacks Applied 3 | . . . 1 2 . parse_system 1 | . . . 1 . . no_distress 1 | . . . . 1 . find_fabricator 1 | . . . . 1 . Relay Couplers Released . | . . . . . . Robots Rewired 2 | . . . . 2 . Allies Hacked . | . . . . . . Hacks Repelled . | . . . . . . Allies | -11 -10 -9 -8 -7 -6 -------- Run | Scr Mat Mat Mat Fac Fac Total Allies 3 | . . . . 3 . Largest Group 3 | . . . . 3 . Highest-Rated Group 63 | . . . . 63 . Highest-Rated Ally 26 | . . . . 26 . Total Orders . | . . . . . . Ally Attacks 5 | . . . . 5 . Total Damage 29 | . . . . 29 . Kills . | . . . . . . Allies Corrupted . | . . . . . . Allies Melted . | . . . . . . Intel | -11 -10 -9 -8 -7 -6 ------- Run | Scr Mat Mat Mat Fac Fac Robot Analysis Total . | . . . . . . Derelict Logs Recovered . | . . . . . . Drone Launches . | . . . . . . Drone Recoveries . | . . . . . . Exploration | -11 -10 -9 -8 -7 -6 ------------- Run | Scr Mat Mat Mat Fac Fac Turns Passed 884 | 10 42 50 347 367 68 Spaces Moved 1564 | 21 77 97 468 782 119 Core 612 | 21 77 97 215 116 86 Treads . | . . . . . . Legs . | . . . . . . Wheels . | . . . . . . Hover . | . . . . . . Flight 952 | . . . 253 666 33 Fastest Speed 35 | 50 50 50 37 37 35 Average Speed 42 | 50 50 50 43 39 46 Slowest Speed 50 | 50 50 50 50 50 50 Overloaded Moves . | . . . . . . Propulsion Burnouts . | . . . . . . Robots Hopped 29 | . . . 9 14 6 Cave-ins Triggered . | . . . . . . Exploration Rate (%) 17 | 3 20 15 31 30 4 Regions Visited 5 Branch Regions . Pre-discovered Areas . | . . . . . . Known Exits Taken 4 | . 1 1 1 1 . Unknown Exits Taken 1 | 1 . . . . . Scrap Searched . | . . . . . . Spaces Dug . | . . . . . . Terrain Destroyed . | . . . . . . Melee . | . . . . . . Projectile . | . . . . . . AOE . | . . . . . . Actions | -11 -10 -9 -8 -7 -6 --------- Run | Scr Mat Mat Mat Fac Fac Total 1742 | 20 79 97 599 821 126 Wait 167 | . . . 134 24 9 Move 1509 | 20 76 96 452 756 109 Hop 21 | . . . 6 11 4 Pick Up . | . . . . . . Fast Attach 14 | . 2 1 4 4 3 Attach . | . . . . . . Detach . | . . . . . . Swap . | . . . . . . Drop 5 | . 1 . . 3 1 Fire . | . . . . . . Melee 16 | . . . 3 13 . Ram . | . . . . . . Kick . | . . . . . . Crush . | . . . . . . Escape Stasis . | . . . . . . Rewire . | . . . . . . Trap 10 | . . . . 10 . Miscellaneous . | . . . . . . Route ------- -11/Scrapyard -10/Materials -9/Materials (discovered 5 exits: *Mat x3 / Min x2) -8/Materials (discovered 2 exits: *Fac / Sto) -7/Factory (discovered 4 exits: *Fac x4) -6/Factory History --------- Turn | Location | Event 4 | -11/Scrapyard | Discovered new exit (range 13) 11 | -11/Scrapyard | Entered Materials 48 | -10/Materials | Discovered new exit (range 3) 49 | -10/Materials | Identified exit to Materials 53 | -10/Materials | Entered another Materials area 55 | -9/Materials | Reached level 2 69 | -9/Materials | Identified exit to Mines 69 | -9/Materials | Identified exit to Materials 103 | -9/Materials | Entered another Materials area 105 | -8/Materials | Reached level 3 180 | -8/Materials | Upgraded with Utility slot (x1) 235 | -8/Materials | Identified exit to Storage 270 | -8/Materials | Upgraded with Power slot (x1) 270 | -8/Materials | Upgraded with Propulsion slot (x1) 372 | -8/Materials | Build established: Hacker-Mutant 425 | -8/Materials | Discovered new exit (range 12) 449 | -8/Materials | Identified exit to Factory 450 | -8/Materials | Entered Factory 452 | -7/Factory | Reached level 4 463 | -7/Factory | Upgraded with Utility slot (x2) 730 | -7/Factory | Identified exit to Factory 736 | -7/Factory | Core integrity fell below 50% 736 | -7/Factory | Core integrity fell below 20% 817 | -7/Factory | Entered another Factory area 818 | -6/Factory | Core integrity fell below 50% 818 | -6/Factory | Core integrity fell below 20% 819 | -6/Factory | Reached level 5 869 | -6/Factory | Upgraded with Utility slot (x1) 885 | -6/Factory | Destroyed by H-66 Slayer with Gauss Rifle Last Messages --------------- Trojan loaded successfully. Testing... Tracking enabled and active. Feedback: System corruption (+1%). 00865_ ALERT: Suspicious activity at Terminal F021. Dispatching Investigation squad. 00869_ Upgraded: Utility Slot (+1) 00869_ Upgraded: Inventory Capacity (+1) 00870_ Acquired Imp. Transmission Jammer. 00873_ Connecting with Terminal... >>Trojan(Botnet) Trojan loaded successfully. Testing... Terminal linked with 2 systems. Awaiting botnet instructions. >>Trojan(Track) Trojan loaded successfully. Testing... Tracking enabled and active. 00885_ Penetrated by Slug. Map ----- +----------------------------------------------------+ | | | | | | | | | | | | | | | | | | | | | | | | | | | | | | | | | | | ????????????????????###########??????????????????? | | ????????????????????# #??????????????????? | | ????????????????????# ""T"" #??????????????????? | | ????????????????????# """"" #??????????????????? | | ????????????????????#! #??????????????????? | | ?????????????????########Y#####??????????????????? | | ????????????# h#??????????????????????? | | ?????????????????########h#??????????????????????? | | ????????????????????????#@#??????????????????????? | | ????????????????????????# #######????#???????????? | | ????????????????????????# #"""""#??"""G"""???????? | | ????????????????????????# #""T""###""" """###????? | | ????????????????????????# #????? | | ????????????????????????# #????? | | ????????????????????????# ^ # "" | | ????????????????????????# """ """ + """ | | ????????????????????????# """"" """"" # """ | | ????????????????????????# """"" """"" # """ | | ????????????? #######/### # | | ???????????? """ ##+### | | ???????????? """"" #?? | | ???????????? ! """"" #?? | | ???????????? R ! k ##+### | | ???????????? u !! # | | ?????????????#+################### #### # "" | | ????????????????????????##########+#### # "" | | ????????????????????????# # # "" | | ????????????????????????# """"""" # # | | ????????????????????????# """"""" # # | | ????????????????????????# """"""" + + | | ????????????????????????# """"""" # # | | ????????????????????????# # # | | ????????????????????????########/###### ###### | +----------------------------------------------------+ Best States ------------- Heat Dissipation 25 Energy Generation 14 Energy Capacity 275 Matter Stores 300 Matter Capacity 300 Sight Range 16 Robot Scan Range 16 Terrain Scan Density 410 Evasion (%) 63 Offensive Hacking 15 Defensive Hacking 20 Item Schematics ----------------- None Robot Schematics ------------------ None Fabricated ------------ Nothing Alien Tech Used ----------------- None Achievements -------------- Hehehe Challenges ------------ None RPGLIKE | -11 -10 -9 -8 -7 -6 --------- Run | Scr Mat Mat Mat Fac Fac Levels Raised 4 | . . 1 1 1 1 XP Earned 9812 | 3000 100 1665 1712 1745 1590 XP Spent 8850 | . . 3800 1500 1900 1650 Upgrades 14 | . . 7 3 2 2 Power Slot 1 | . . . 1 . . Propulsion Slot 1 | . . . 1 . . Utility Slot 4 | . . . 1 2 1 Inventory Capacity 1 | . . . . . 1 Hack Attack % 3 | . . 3 . . . Hack Defense % 4 | . . 4 . . . Protomatter Created . | . . . . . . Protomatter Decayed 107 | . . . . 107 . Game ------ Seed SmartbombPhasingTerrabomb Manual? 0 Play Time 00:21:24 Cumulative 87.6 hours Start 2019.12.21 @ 14:38:01 End 2019.12.21 @ 14:56:32 Sessions 1 Manual Loads 0 Difficulty Rogue Special Mode Winter2019/RPGLIKE Game No. 116 Rogue 116 Adventurer 0 Explorer 0 Win Type - Total 8 Types 7/0/0/1/0/0/0 Lore% 38 Gallery% 60 Achievement% 48 Wizard Run 0 Options --------- ASCII 0 Keyboard 0 Movement Numpad Keybinds 0 Fullscreen 1 Font 18/SmallcapsGlow Map View 76x50 Tactical HUD 1 Map Filters NONE Filters NONE Steam 1 RUN: fc949b03-1cc9-481f-8430-b4147bdf92b4